[Event "46th GRE-chT Premier 2018"]
[Site "Rio Achaia"]
[Date "2018.07.11"]
[Round "2"]
[White "Juhasz, Barbara"]
[Black "Paparizou, Eleni"]
[Result "1-0"]
[ECO "B01"]
[WhiteElo "2227"]
[BlackElo "1274"]
[Annotator "NA"]
[PlyCount "23"]
[EventDate "2018.07.10"]
[EventType "team-tourn"]
[EventCountry "GRE"]
[SourceTitle "playchess.com"]
[Source "ChessBase"]
[SourceQuality "1"]
[TimeControl "40/5400+30:1800+30"]

1. e4 {[%emt 0:00:00]} d5 {[%emt 0:00:00]} 2. exd5 {[%emt 0:00:00]} Qxd5 {[%emt 0:00:00]} 3. Nc3 {[%emt 0:00:03]} Qa5 {[%emt 0:00:19]} 4. d4 {[%emt 0:00:17]} c6 {[%emt 0:00:17]} 5. Bc4 $14 {[%emt 0:00:48] LiveBook: 429 Games} Nf6 {[%emt 0:02:32]} 6. Qe2 {[%emt 0:03:57]} Bf5 {[%emt 0:02:17]} 7. Bd2 {[%emt 0:11:50]} e6 {[%emt 0:14:23]} 8. Nf3 {[%emt 0:02:49]} Nbd7 {[%emt 0:03:29]} 9. d5 {[%emt 0:03:00]} Nc5 {[%emt 0:17:36]} 10. Nd4 {[%emt 0:18:11]} cxd5 {[%emt 0:15:42]} 11. Bb5+ {[%emt 0:02:03]} Kd8 {[%emt 0:04:20]} 12. Nxd5 {[%emt 0:03:15]} 1-0

[Event "46th GRE-chT Premier 2018"]
[Site "Rio Achaia"]
[Date "2018.07.11"]
[Round "2"]
[White "Roinos, Ilias"]
[Black "Krallis, Christos"]
[Result "0-1"]
[ECO "B27"]
[WhiteElo "2220"]
[BlackElo "2132"]
[Annotator "NA"]
[PlyCount "108"]
[EventDate "2018.07.10"]
[EventType "team-tourn"]
[EventCountry "GRE"]
[SourceTitle "playchess.com"]
[Source "ChessBase"]
[SourceQuality "1"]
[TimeControl "40/5400+30:1800+30"]

1. e4 {[%emt 0:00:00]} c5 {[%emt 0:00:07]} 2. Nf3 {[%emt 0:00:00]} g6 {[%emt 0:00:14]} 3. c3 {[%emt 0:00:04]} Bg7 {[%emt 0:00:21]} 4. d4 {[%emt 0:00:09]} cxd4 {[%emt 0:00:08]} 5. cxd4 {[%emt 0:00:08]} d5 {[%emt 0:00:09]} 6. exd5 {[%emt 0:00:08]} Nf6 {[%emt 0:00:04]} 7. Nc3 {[%emt 0:00:21]} Nxd5 {[%emt 0:01:25]} 8. Bb5+ {[%emt 0:05:08]} Bd7 {[%emt 0:03:03]} 9. Qb3 {[%emt 0:01:04]} Nxc3 {[%emt 0:00:45]} 10. bxc3 {[%emt 0:00:27]} O-O {[%emt 0:01:21]} 11. O-O {[%emt 0:17:52]} Nc6 {[%emt 0:02:51]} 12. Bg5 {[%emt 0:12:55]} h6 {[%emt 0:03:59]} 13. Bh4 {[%emt 0:02:02]} Be6 {[%emt 0:04:06]} 14. Qa3 {[%emt 0:03:42]} g5 {[%emt 0:00:58]} 15. Bg3 {[%emt 0:07:31]} Bd5 {[%emt 0:03:40]} 16. Rfe1 {[%emt 0:14:24]} Rc8 {[%emt 0:27:09]} 17. Rac1 {[%emt 0:08:39]} Re8 {[%emt 0:09:30]} 18. Ne5 {[%emt 0:03:59]} Bxg2 {[%emt 0:07:53]} 19. Bxc6 {[%emt 0:06:20]} Bxc6 {[%emt 0:00:16]} 20. Nxc6 {[%emt 0:00:08]} Rxc6 {[%emt 0:02:54]} 21. Qxa7 {[%emt 0:00:49]} Qc8 {[%emt 0:01:43]} 22. Rb1 {[%emt 0:08:17]} h5 {[%emt 0:02:41]} 23. Qxb7 {[%emt 0:01:14]} h4 {[%emt 0:00:45]} 24. d5 {[%emt 0:05:13]} hxg3 {[%emt 0:08:50]} 25. Qxc6 {[%emt 0:01:16]} gxf2+ {[%emt 0:00:04]} 26. Kxf2 {[%emt 0:00:06]} Qf5+ {[%emt 0:00:33]} 27. Kg2 {[%emt 0:00:57]} Rc8 {[%emt 0:00:23]} 28. Qb5 {[%emt 0:00:28]} Qg4+ {[%emt 0:00:59]} 29. Kh1 {[%emt 0:00:27]} Qf3+ {[%emt 0:01:02]} 30. Kg1 {[%emt 0:00:02]} Rxc3 {[%emt 0:00:31]} 31. Rbd1 {[%emt 0:00:42]} Rc2 {[%emt 0:05:22]} 32. Qb8+ {[%emt 0:00:13]} Bf8 {[%emt 0:03:27]} 33. Qg3 {[%emt 0:00:07]} Qh5 {[%emt 0:00:38]} 34. Rd3 {[%emt 0:01:34]} Rxa2 {[%emt 0:00:55]} 35. h4 {[%emt 0:00:27]} g4 {[%emt 0:06:52]} 36. Re4 {[%emt 0:00:29]} f5 {[%emt 0:00:05]} 37. Re6 {[%emt 0:00:04]} Ra1+ {[%emt 0:00:33]} 38. Kg2 {[%emt 0:00:17]} Ra2+ {[%emt 0:01:15]} 39. Kg1 {[%emt 0:00:13]} Ra1+ {[%emt 0:01:21]} 40. Kg2 {[%emt 0:00:00]} Ra4 {[%emt 0:00:00]} 41. Qe1 {[%emt 0:16:09]} Ra2+ {[%emt 0:04:18]} 42. Kg1 {[%emt 0:01:24]} Qh8 {[%emt 0:02:55]} 43. Re5 {[%emt 0:07:35]} Qf6 {[%emt 0:00:30]} 44. Rd1 {[%emt 0:06:25]} Qb6+ {[%emt 0:02:33]} 45. Kh1 {[%emt 0:00:02]} Qb2 {[%emt 0:01:04]} 46. Qg3 {[%emt 0:00:02]} Ra3 {[%emt 0:03:00]} 47. Re3 {[%emt 0:00:03]} Ra2 {[%emt 0:03:51]} 48. Rde1 {[%emt 0:02:30]} Qf6 {[%emt 0:03:13]} 49. Re6 {[%emt 0:00:46]} Qd4 {[%emt 0:00:47]} 50. R6e5 {[%emt 0:00:51]} Rf2 {[%emt 0:02:07]} 51. Qe3 {[%emt 0:00:54]} Qb2 {[%emt 0:01:02]} 52. Qg3 {[%emt 0:00:20]} Rf3 {[%emt 0:00:43]} 53. Qg2 {[%emt 0:00:26]} Rh3+ {[%emt 0:00:46]} 54. Kg1 {[%emt 0:00:53]} Qd4+ {[%emt 0:00:07]} 0-1

[Event "46th GRE-chT Premier 2018"]
[Site "Rio Achaia"]
[Date "2018.07.11"]
[Round "2"]
[White "Michos, Thomas"]
[Black "Karaboikis, Spiridon"]
[Result "1-0"]
[ECO "A48"]
[WhiteElo "2211"]
[BlackElo "1942"]
[Annotator "NA"]
[PlyCount "89"]
[EventDate "2018.07.10"]
[EventType "team-tourn"]
[EventCountry "GRE"]
[SourceTitle "playchess.com"]
[Source "ChessBase"]
[SourceQuality "1"]
[TimeControl "40/5400+30:1800+30"]

1. d4 {[%emt 0:00:00]} Nf6 {[%emt 0:00:00]} 2. Nf3 {[%emt 0:00:00]} g6 {[%emt 0:00:00]} 3. Bg5 {[%emt 0:00:01]} Bg7 {[%emt 0:00:11]} 4. Nbd2 {[%emt 0:00:11]} O-O {[%emt 0:00:52]} 5. c3 {[%emt 0:00:05]} d5 {[%emt 0:00:29]} 6. e3 {[%emt 0:00:08]} Nbd7 {[%emt 0:01:40]} 7. Be2 {[%emt 0:00:09]} Re8 {[%emt 0:00:57]} 8. O-O {[%emt 0:00:19]} e5 {[%emt 0:00:51]} 9. Nb3 {[%emt 0:01:00]} e4 {[%emt 0:16:14]} 10. Nfd2 {[%emt 0:00:08]} Nf8 {[%emt 0:04:11]} 11. c4 {[%emt 0:02:05]} c6 {[%emt 0:00:55]} 12. Bh4 {[%emt 0:03:33]} h5 {[%emt 0:02:56]} 13. cxd5 {[%emt 0:07:21]} cxd5 {[%emt 0:00:14]} 14. Nc5 {[%emt 0:02:37]} b6 {[%emt 0:02:01]} 15. Na4 {[%emt 0:01:13]} Bd7 {[%emt 0:10:48]} 16. Nc3 {[%emt 0:00:11]} Bc6 {[%emt 0:01:58]} 17. Rc1 {[%emt 0:01:11]} Qd7 {[%emt 0:00:55]} 18. Qc2 {[%emt 0:01:54]} Rec8 {[%emt 0:03:55]} 19. Qb3 {[%emt 0:13:08]} Ne6 {[%emt 0:12:22]} 20. Ba6 {[%emt 0:10:46]} Rd8 {[%emt 0:03:43]} 21. Rc2 {[%emt 0:09:08]} g5 {[%emt 0:02:44]} 22. Bg3 {[%emt 0:00:30]} h4 {[%emt 0:00:11]} 23. Be5 {[%emt 0:00:05]} Ng4 {[%emt 0:05:46]} 24. Bxg7 {[%emt 0:00:14]} Kxg7 {[%emt 0:00:16]} 25. Rfc1 {[%emt 0:00:37]} Qd6 {[%emt 0:00:56]} 26. Nf1 {[%emt 0:00:16]} Qd7 {[%emt 0:04:18]} 27. Qa3 {[%emt 0:16:32]} Bb7 {[%emt 0:13:05]} 28. Be2 {[%emt 0:02:15]} Nf6 {[%emt 0:00:14]} 29. Nb5 {[%emt 0:02:04]} Rac8 {[%emt 0:03:19]} 30. Rxc8 {[%emt 0:04:47]} Rxc8 {[%emt 0:00:04]} 31. Rxc8 {[%emt 0:00:20]} Qxc8 {[%emt 0:02:56]} 32. Qxa7 {[%emt 0:01:13]} Ba6 {[%emt 0:02:12]} 33. Nd6 {[%emt 0:00:32]} Qc7 {[%emt 0:02:29]} 34. Nf5+ {[%emt 0:02:12]} Kg6 {[%emt 0:01:07]} 35. Nxh4+ {[%emt 0:00:10]} gxh4 {[%emt 0:00:15]} 36. Qxa6 {[%emt 0:00:06]} Ng5 {[%emt 0:00:36]} 37. h3 {[%emt 0:01:43]} Qd6 {[%emt 0:01:05]} 38. Qb5 {[%emt 0:01:38]} Qe6 {[%emt 0:00:33]} 39. Nh2 {[%emt 0:00:00]} Qd6 {[%emt 0:00:00]} 40. a4 {[%emt 0:00:00]} Qc7 {[%emt 0:00:00]} 41. b4 {[%emt 0:04:28]} Qc1+ {[%emt 0:06:22]} 42. Bf1 {[%emt 0:00:12]} Qd1 {[%emt 0:00:22]} 43. a5 {[%emt 0:00:26]} bxa5 {[%emt 0:00:07]} 44. bxa5 {[%emt 0:00:06]} Qe1 {[%emt 0:07:11]} 45. a6 {[%emt 0:00:18]} 1-0

[Event "46th GRE-chT Premier 2018"]
[Site "Rio Achaia"]
[Date "2018.07.11"]
[Round "2"]
[White "Sandalakis, Nikolaos"]
[Black "Kesidis, Odyseas"]
[Result "1/2-1/2"]
[ECO "C47"]
[WhiteElo "2209"]
[BlackElo "2248"]
[Annotator "NA"]
[PlyCount "172"]
[EventDate "2018.07.10"]
[EventType "team-tourn"]
[EventCountry "GRE"]
[SourceTitle "playchess.com"]
[Source "ChessBase"]
[SourceQuality "1"]
[TimeControl "40/5400+30:1800+30"]

1. e4 {[%emt 0:00:00]} e5 {[%emt 0:03:41]} 2. Nf3 {[%emt 0:00:00]} Nc6 {[%emt 0:00:12]} 3. Nc3 {[%emt 0:01:11]} Nf6 {[%emt 0:00:16]} 4. h3 {[%emt 0:00:07]} Bb4 {[%emt 0:03:48] C47: Scotch Four Knights and Four Knights with 4 g3} 5. Bd3 {[%emt 0:00:55]} d6 {[%emt 0:00:20]} 6. a3 {[%emt 0:00:58]} Ba5 {[%emt 0:00:54]} 7. b4 {[%emt 0:09:17]} Bb6 {[%emt 0:00:10]} 8. Na4 {[%emt 0:06:17]} O-O {[%emt 0:01:40]} 9. Bb2 $146 {[%emt 0:21:22]} ({Predecessor:} 9. O-O d5 10. exd5 Qxd5 11. Re1 Bd4 12. Nxd4 exd4 {1-0 (56) Giri,A (2776)-Adams,M (2745) London 2014}) 9... Re8 {[%emt 0:12:43]} 10. O-O {[%emt 0:13:10]} Ne7 {[%emt 0:07:03]} 11. Re1 {[%emt 0:01:46]} Ng6 {[%emt 0:03:52]} 12. Nxb6 {[%emt 0:00:32]} axb6 {[%emt 0:00:04]} 13. Bf1 {[%emt 0:00:47]} h6 {[%emt 0:03:23]} 14. d4 {[%emt 0:05:18]} Qe7 {[%emt 0:01:05]} 15. c4 {[%emt 0:09:35]} c5 {[%emt 0:01:30]} 16. dxe5 {[%emt 0:03:59]} dxe5 {[%emt 0:00:13]} 17. Qd2 {[%emt 0:01:01]} Bd7 {[%emt 0:01:54]} 18. b5 {[%emt 0:05:10]} Rad8 {[%emt 0:05:14]} 19. Qc3 {[%emt 0:00:24]} Bc8 {[%emt 0:00:47]} 20. a4 {[%emt 0:02:11]} Nh7 {[%emt 0:03:26]} 21. Red1 {[%emt 0:02:27]} Ng5 {[%emt 0:03:05]} 22. Nxg5 {[%emt 0:06:41]} Qxg5 {[%emt 0:01:51]} 23. Qe3 {[%emt 0:00:42]} Nf4 {[%emt 0:02:22]} 24. Kh2 {[%emt 0:00:27]} Qf6 {[%emt 0:19:15]} 25. a5 {[%emt 0:02:17]} bxa5 {[%emt 0:02:22]} 26. Qxc5 b6 {[%emt 0:01:29]} 27. Rxd8 {[%emt 0:02:19]} Qxd8 {[%emt 0:01:06]} 28. Qe3 {[%emt 0:00:04]} Qc7 {[%emt 0:03:11]} 29. c5 {[%emt 0:01:07]} bxc5 {[%emt 0:00:30]} 30. Bc3 {[%emt 0:00:39]} Bb7 {[%emt 0:02:33]} 31. Bxa5 {[%emt 0:00:50]} Qd6 {[%emt 0:00:49]} 32. Rc1 {[%emt 0:02:09]} Ne6 {[%emt 0:00:45]} 33. f3 {[%emt 0:00:52]} Ra8 {[%emt 0:01:12]} 34. Qd2 {[%emt 0:00:59]} Nd4 {[%emt 0:00:23]} 35. Bc4 {[%emt 0:00:18]} Bc8 {[%emt 0:04:59]} 36. Rb1 {[%emt 0:01:16]} Be6 {[%emt 0:04:03]} 37. Bxe6 {[%emt 0:00:05]} Qxe6 {[%emt 0:00:09]} 38. b6 {[%emt 0:00:52]} Rb8 {[%emt 0:04:18]} 39. b7 {[%emt 0:00:51]} Qa6 {[%emt 0:01:02]} 40. Bc7 {[%emt 0:00:00]} Rxb7 {[%emt 0:00:00]} 41. Rxb7 {[%emt 0:00:36]} Qxb7 {[%emt 0:00:26]} 42. Bxe5 {[%emt 0:00:06]} Ne6 {[%emt 0:02:06]} 43. Qc2 {[%emt 0:02:49]} Qb5 {[%emt 0:02:47]} 44. f4 {[%emt 0:08:47]} c4 {[%emt 0:01:49]} 45. Qd2 {[%emt 0:00:37]} Qc6 {[%emt 0:07:43]} 46. Qd5 {[%emt 0:02:58]} Qxd5 {[%emt 0:01:05]} 47. exd5 {[%emt 0:00:04]} Nc5 {[%emt 0:00:03]} 48. Kg1 {[%emt 0:03:22]} f6 {[%emt 0:04:08]} 49. Bd4 {[%emt 0:00:19]} Nd3 {[%emt 0:02:40]} 50. g3 {[%emt 0:03:36]} Kf7 {[%emt 0:00:40]} 51. Kg2 {[%emt 0:00:42]} Ke7 {[%emt 0:01:25]} 52. Kf3 {[%emt 0:02:16]} Kd6 {[%emt 0:06:52]} 53. Ke4 {[%emt 0:00:04]} Nb4 {[%emt 0:00:21]} 54. Bb2 {[%emt 0:03:55]} Nxd5 {[%emt 0:02:05]} 55. Ba3+ {[%emt 0:01:24]} Kc6 {[%emt 0:00:06]} 56. Bf8 {[%emt 0:03:20]} g6 {[%emt 0:02:59]} 57. Bxh6 {[%emt 0:00:04]} f5+ {[%emt 0:00:56]} 58. Kd4 {[%emt 0:00:22]} c3 {[%emt 0:01:04]} 59. Kd3 {[%emt 0:00:06]} Kb5 {[%emt 0:00:11]} 60. Bf8 {[%emt 0:01:10]} Ka4 {[%emt 0:00:29]} 61. Kc2 {[%emt 0:00:07]} Kb5 {[%emt 0:00:34]} 62. Kb3 {[%emt 0:00:42]} c2 {[%emt 0:02:08]} 63. Kxc2 {[%emt 0:00:04]} Kc4 {[%emt 0:00:02]} 64. Kd2 {[%emt 0:01:46]} Kd4 {[%emt 0:00:21]} 65. Ke2 {[%emt 0:00:30]} Ke4 {[%emt 0:00:04]} 66. Bd6 {[%emt 0:01:39]} (66. Bg7 $14) 66... Nc3+ {[%emt 0:00:10]} 67. Kf2 {[%emt 0:00:14]} Nd1+ {[%emt 0:00:15]} 68. Ke1 {[%emt 0:01:28]} Nc3 {[%emt 0:00:01]} 69. Be5 {[%emt 0:00:53]} Nd5 {[%emt 0:00:03]} 70. Ke2 {[%emt 0:01:05]} g5 {[%emt 0:00:19]} 71. Kf2 {[%emt 0:00:56]} gxf4 {[%emt 0:00:31]} 72. gxf4 {[%emt 0:00:20]} Nxf4 $11 {[%emt 0:00:05]} 73. Bxf4 {[%emt 0:00:09]} Kxf4 {[%emt 0:00:02]} 74. h4 {[%emt 0:00:16]} Kg4 {[%emt 0:00:03]} 75. h5 {[%emt 0:00:06]} Kxh5 {[%emt 0:00:04]} 76. Kf3 {[%emt 0:00:04]} Kg5 {[%emt 0:00:04]} 77. Kg3 {[%emt 0:00:08]} f4+ {[%emt 0:00:06]} 78. Kf3 {[%emt 0:00:04]} Kf5 {[%emt 0:00:05]} 79. Kf2 {[%emt 0:00:09]} Ke4 {[%emt 0:00:07]} 80. Ke2 {[%emt 0:00:05]} f3+ {[%emt 0:00:05]} 81. Kf2 {[%emt 0:00:04]} Kf4 {[%emt 0:00:05]} 82. Kf1 {[%emt 0:00:09]} Ke4 {[%emt 0:00:09]} 83. Kf2 {[%emt 0:00:07]} Kf4 {[%emt 0:00:02]} 84. Kf1 {[%emt 0:00:10]} Ke3 {[%emt 0:00:06]} 85. Ke1 {[%emt 0:00:09]} f2+ {[%emt 0:00:04]} 86. Kf1 {[%emt 0:00:06]} Kf3 {[%emt 0:00:03]} 1/2-1/2

[Event "46th GRE-chT Premier 2018"]
[Site "Rio Achaia"]
[Date "2018.07.11"]
[Round "2"]
[White "Milonakis, Georgios"]
[Black "Hristodoulou, Panagiotis"]
[Result "1-0"]
[ECO "A06"]
[WhiteElo "2200"]
[BlackElo "2329"]
[Annotator "NA"]
[PlyCount "155"]
[EventDate "2018.07.10"]
[EventType "team-tourn"]
[EventCountry "GRE"]
[SourceTitle "playchess.com"]
[Source "ChessBase"]
[SourceQuality "1"]
[TimeControl "40/5400+30:1800+30"]

1. Nf3 {[%emt 0:00:00]} d5 {[%emt 0:06:17]} 2. g3 {[%emt 0:00:23]} c6 {[%emt 0:00:14]} 3. Bg2 {[%emt 0:00:21]} Bg4 {[%emt 0:00:07]} 4. c4 {[%emt 0:01:58]} e6 {[%emt 0:00:08]} 5. cxd5 {[%emt 0:00:50]} Bxf3 {[%emt 0:03:07]} 6. Bxf3 {[%emt 0:00:22]} cxd5 {[%emt 0:00:11]} 7. d3 {[%emt 0:04:59]} Nf6 {[%emt 0:00:54]} 8. Nc3 {[%emt 0:00:44]} Nc6 {[%emt 0:00:30]} 9. O-O {[%emt 0:01:00]} Be7 {[%emt 0:00:21]} 10. Qa4 {[%emt 0:06:56]} O-O {[%emt 0:00:17]} 11. Bf4 {[%emt 0:02:37]} Qd7 {[%emt 0:06:39]} 12. Bg2 {[%emt 0:04:10]} a6 {[%emt 0:12:07]} 13. Rac1 {[%emt 0:03:39]} b5 {[%emt 0:05:30]} 14. Qd1 {[%emt 0:02:50]} Rac8 {[%emt 0:00:19]} 15. h3 {[%emt 0:14:44]} Rfd8 {[%emt 0:16:41]} 16. g4 {[%emt 0:01:13]} e5 {[%emt 0:05:06]} 17. Bg5 {[%emt 0:14:20]} Qe6 {[%emt 0:05:02]} 18. e3 {[%emt 0:05:02]} Ne8 {[%emt 0:06:35]} 19. Bxe7 {[%emt 0:01:27]} Nxe7 {[%emt 0:00:03]} 20. d4 {[%emt 0:05:46]} e4 {[%emt 0:05:14]} 21. f3 {[%emt 0:04:39]} f5 {[%emt 0:04:41]} 22. fxe4 {[%emt 0:02:21]} fxe4 {[%emt 0:00:36]} 23. Ne2 {[%emt 0:01:47]} Rxc1 {[%emt 0:03:56]} 24. Qxc1 {[%emt 0:00:14]} Rc8 {[%emt 0:00:12]} 25. Qd2 {[%emt 0:01:40]} Ng6 {[%emt 0:00:39]} 26. Rc1 {[%emt 0:03:13]} Nd6 {[%emt 0:04:37]} 27. Rxc8+ {[%emt 0:00:40]} Qxc8 {[%emt 0:01:01]} 28. Qc3 {[%emt 0:01:28]} Qc4 {[%emt 0:01:44]} 29. Bf1 {[%emt 0:07:00]} b4 {[%emt 0:04:30]} 30. Qe1 {[%emt 0:05:22]} Qd3 {[%emt 0:02:40]} 31. Nf4 {[%emt 0:01:38]} Qc2 {[%emt 0:00:34]} 32. Nxg6 {[%emt 0:00:15]} hxg6 {[%emt 0:00:11]} 33. Qxb4 {[%emt 0:00:06]} Nf7 {[%emt 0:01:32]} 34. Qe7 {[%emt 0:00:56]} Qc6 {[%emt 0:00:53]} 35. b4 {[%emt 0:01:35]} Nd6 {[%emt 0:00:27]} 36. Qe6+ {[%emt 0:00:25]} Kh7 {[%emt 0:00:22]} 37. a4 {[%emt 0:00:51]} Qc7 {[%emt 0:00:45]} 38. Qxd5 {[%emt 0:00:09]} Nf7 {[%emt 0:03:06]} 39. Qxe4 {[%emt 0:00:55]} Qg3+ {[%emt 0:00:52]} 40. Qg2 {[%emt 0:00:00]} Qxe3+ {[%emt 0:00:00]} 41. Qf2 {[%emt 0:00:57]} Qe7 {[%emt 0:00:38]} 42. Bxa6 {[%emt 0:06:22]} Qxb4 {[%emt 0:00:26]} 43. Qxf7 {[%emt 0:01:24]} Qxd4+ {[%emt 0:00:07]} 44. Qf2 {[%emt 0:00:57]} Qxa4 {[%emt 0:00:04]} 45. Be2 {[%emt 0:01:21]} Qb3 {[%emt 0:00:11]} 46. Kg2 {[%emt 0:02:07]} Qd5+ {[%emt 0:00:34]} 47. Bf3 {[%emt 0:00:53]} Qe5 {[%emt 0:00:02]} 48. Qc2 {[%emt 0:02:04]} Kh6 {[%emt 0:00:22]} 49. Qe4 {[%emt 0:00:33]} Qb2+ {[%emt 0:00:08]} 50. Be2 {[%emt 0:00:17]} g5 {[%emt 0:00:38]} 51. Qe3 {[%emt 0:02:29]} Kh7 {[%emt 0:00:45]} 52. Kg1 {[%emt 0:02:09]} Qf6 {[%emt 0:00:13]} 53. Qe4+ {[%emt 0:00:46]} g6 {[%emt 0:00:04]} 54. Bd3 {[%emt 0:01:46]} Kh6 {[%emt 0:00:52]} 55. Kg2 {[%emt 0:00:05]} Qb2+ {[%emt 0:00:18]} 56. Bc2 {[%emt 0:01:10]} Qf6 {[%emt 0:00:01]} 57. Qc4 {[%emt 0:05:14]} Qb6 {[%emt 0:01:48]} 58. Be4 {[%emt 0:01:02]} Qb2+ {[%emt 0:00:18]} 59. Kf1 {[%emt 0:00:44]} Qa1+ {[%emt 0:02:06]} 60. Ke2 {[%emt 0:00:34]} Qb2+ {[%emt 0:00:05]} 61. Bc2 {[%emt 0:01:40]} Qe5+ {[%emt 0:00:17]} 62. Qe4 {[%emt 0:00:13]} Qh2+ {[%emt 0:00:51]} 63. Ke3 {[%emt 0:01:47]} Qg3+ {[%emt 0:00:39]} 64. Kd4 {[%emt 0:01:14]} Qd6+ {[%emt 0:00:07]} 65. Qd5 {[%emt 0:01:04]} Qb4+ {[%emt 0:00:09]} 66. Qc4 {[%emt 0:00:24]} Qb2+ {[%emt 0:00:12]} 67. Qc3 {[%emt 0:00:23]} Qb6+ {[%emt 0:00:04]} 68. Qc5 {[%emt 0:00:18]} Qf6+ {[%emt 0:00:19]} 69. Qe5 {[%emt 0:00:18]} Qb6+ {[%emt 0:00:09]} 70. Kd3 {[%emt 0:01:36]} Qa6+ {[%emt 0:00:58]} 71. Kd2 {[%emt 0:00:16]} Qc8 {[%emt 0:00:30]} 72. Qd6 {[%emt 0:01:09]} Qd7 {[%emt 0:02:10]} 73. Qd3 {[%emt 0:00:10]} Qc6 {[%emt 0:00:06]} 74. Qxg6+ {[%emt 0:00:07]} Qxg6 {[%emt 0:00:05]} 75. Bxg6 {[%emt 0:00:04]} Kxg6 {[%emt 0:00:04]} 76. Kd3 {[%emt 0:00:06]} Kf7 {[%emt 0:01:29]} 77. Kd4 {[%emt 0:00:15]} Ke6 {[%emt 0:00:21]} 78. Ke4 {[%emt 0:00:06] Kd5+} 1-0

[Event "46th GRE-chT Premier 2018"]
[Site "Rio Achaia"]
[Date "2018.07.11"]
[Round "2"]
[White "Klerides, Paris"]
[Black "Karousos-Theodorakis, Nikolaos"]
[Result "0-1"]
[ECO "B94"]
[WhiteElo "2196"]
[BlackElo "2255"]
[Annotator "NA"]
[PlyCount "64"]
[EventDate "2018.07.10"]
[EventType "team-tourn"]
[EventCountry "GRE"]
[SourceTitle "playchess.com"]
[Source "ChessBase"]
[SourceQuality "1"]
[TimeControl "40/5400+30:1800+30"]

1. e4 {[%emt 0:00:00]} c5 {[%emt 0:00:00]} 2. Nf3 {[%emt 0:00:03]} d6 {[%emt 0:00:00]} 3. d4 {[%emt 0:00:12]} cxd4 {[%emt 0:00:00]} 4. Nxd4 {[%emt 0:00:21]} Nf6 {[%emt 0:00:02]} 5. Nc3 {[%emt 0:00:20]} a6 {[%emt 0:00:06]} 6. Bg5 {[%emt 0:00:58]} Nbd7 {[%emt 0:00:10]} 7. f4 {[%emt 0:00:13]} Qc7 {[%emt 0:00:14]} 8. Qf3 {[%emt 0:00:33]} h6 {[%emt 0:01:16]} 9. Bh4 {[%emt 0:01:48]} g5 {[%emt 0:00:18]} 10. fxg5 {[%emt 0:01:50]} hxg5 {[%emt 0:00:16]} 11. Bxg5 {[%emt 0:09:03]} Qc5 {[%emt 0:00:21]} 12. Be3 {[%emt 0:14:40]} Ne5 {[%emt 0:00:24]} 13. Qe2 {[%emt 0:00:35]} Qb4 {[%emt 0:23:40]} 14. O-O-O {[%emt 0:13:35]} Bg4 {[%emt 0:08:05]} 15. Nf3 {[%emt 0:08:22]} Rc8 {[%emt 0:03:59]} 16. Rd4 {[%emt 0:05:54]} Qa5 {[%emt 0:01:30]} 17. Ra4 {[%emt 0:05:09]} Qc7 {[%emt 0:01:43]} 18. Qf2 {[%emt 0:04:09]} Bd7 {[%emt 0:15:48]} 19. Bb6 {[%emt 0:06:33]} Bh6+ {[%emt 0:01:07]} 20. Kb1 {[%emt 0:00:24]} Neg4 {[%emt 0:02:11]} 21. Qg1 {[%emt 0:03:21]} Be3 {[%emt 0:13:42]} 22. Rb4 {[%emt 0:06:23]} Bxg1 {[%emt 0:01:02]} 23. Bxc7 {[%emt 0:00:13]} Bc5 {[%emt 0:00:18]} 24. Rxb7 {[%emt 0:00:38]} Bc6 {[%emt 0:00:38]} 25. Rb8 {[%emt 0:01:26]} Rxb8 {[%emt 0:00:04]} 26. Bxb8 {[%emt 0:00:01]} Nf2 {[%emt 0:00:26]} 27. e5 {[%emt 0:02:47]} Nxh1 {[%emt 0:00:49]} 28. exf6 {[%emt 0:00:12]} Kd7 {[%emt 0:00:19]} 29. fxe7 {[%emt 0:05:03]} Rxb8 {[%emt 0:00:43]} 30. Bxa6 {[%emt 0:00:33]} Kxe7 {[%emt 0:00:25]} 31. Bc4 {[%emt 0:00:26]} Rg8 {[%emt 0:05:06]} 32. Nh4 {[%emt 0:00:49]} Rg4 {[%emt 0:03:01]} 0-1

[Event "46th GRE-chT Premier 2018"]
[Site "Rio Achaia"]
[Date "2018.07.11"]
[Round "2"]
[White "Gazis, Efstathios"]
[Black "Masouros, Panagiotis"]
[Result "1/2-1/2"]
[ECO "B62"]
[WhiteElo "2195"]
[BlackElo "1860"]
[Annotator "NA"]
[PlyCount "79"]
[EventDate "2018.07.10"]
[EventType "team-tourn"]
[EventCountry "GRE"]
[SourceTitle "playchess.com"]
[Source "ChessBase"]
[SourceQuality "1"]
[TimeControl "40/5400+30:1800+30"]

1. e4 {[%emt 0:07:30]} c5 {[%emt 0:00:00]} 2. Nf3 {[%emt 0:00:13]} Nc6 {[%emt 0:00:00]} 3. Nc3 {[%emt 0:00:21]} d6 {[%emt 0:01:07]} 4. d4 {[%emt 0:01:23]} cxd4 {[%emt 0:00:10]} 5. Nxd4 {[%emt 0:00:04]} Nf6 {[%emt 0:00:32]} 6. Bg5 {[%emt 0:00:09]} e6 {[%emt 0:00:10]} 7. Qd3 {[%emt 0:00:26]} Be7 {[%emt 0:01:30]} 8. Be2 {[%emt 0:00:11]} a6 {[%emt 0:01:28]} 9. O-O-O {[%emt 0:00:13]} Qc7 {[%emt 0:03:41]} 10. f4 {[%emt 0:00:50]} Bd7 {[%emt 0:04:57]} 11. Rhe1 {[%emt 0:03:53]} Rc8 {[%emt 0:01:41]} 12. Nxc6 {[%emt 0:05:31]} Bxc6 {[%emt 0:01:45]} 13. Bf3 {[%emt 0:02:03]} O-O {[%emt 0:02:52]} 14. Bxf6 {[%emt 0:05:38]} Bxf6 {[%emt 0:00:57]} 15. Qxd6 {[%emt 0:02:52]} Bxc3 {[%emt 0:00:25]} 16. bxc3 {[%emt 0:00:30]} Qa5 {[%emt 0:04:41]} 17. Kb2 {[%emt 0:02:39]} Bd5 {[%emt 0:05:59]} 18. Qb4 {[%emt 0:08:55]} Qxa2+ {[%emt 0:01:25]} 19. Kc1 {[%emt 0:00:09]} Bc6 {[%emt 0:05:22]} 20. Rd4 {[%emt 0:08:32]} a5 {[%emt 0:04:23]} 21. Qb3 {[%emt 0:03:33]} Qxb3 {[%emt 0:01:51]} 22. cxb3 {[%emt 0:00:06]} Rfd8 {[%emt 0:00:38]} 23. Kb2 {[%emt 0:05:50]} Kf8 {[%emt 0:01:23]} 24. Red1 {[%emt 0:03:32]} Ke7 {[%emt 0:00:34]} 25. c4 {[%emt 0:01:34]} f6 {[%emt 0:15:32]} 26. b4 {[%emt 0:09:00]} axb4 {[%emt 0:03:23]} 27. Kb3 {[%emt 0:01:20]} Rxd4 {[%emt 0:02:36]} 28. Rxd4 {[%emt 0:00:05]} Ra8 {[%emt 0:00:20]} 29. Kxb4 {[%emt 0:00:24]} Ra1 {[%emt 0:01:21]} 30. Kc5 {[%emt 0:04:24]} Re1 {[%emt 0:04:40]} 31. Rd3 {[%emt 0:02:53]} e5 {[%emt 0:11:10]} 32. fxe5 {[%emt 0:00:17]} fxe5 {[%emt 0:00:04]} 33. Rd2 {[%emt 0:00:34]} g6 {[%emt 0:01:22]} 34. Kb6 {[%emt 0:00:40]} Bxe4 {[%emt 0:01:31]} 35. Bxe4 {[%emt 0:01:41]} Rxe4 {[%emt 0:00:05]} 36. Kc5 {[%emt 0:00:43]} b6+ {[%emt 0:01:10]} 37. Kd5 {[%emt 0:00:22]} Rd4+ {[%emt 0:03:29]} 38. Rxd4 {[%emt 0:00:20]} exd4 {[%emt 0:00:02]} 39. Kxd4 {[%emt 0:00:07]} Kd6 {[%emt 0:00:03]} 40. Ke4 {Ke5+} 1/2-1/2